bitfinex-derivatives/quotes_SOLF0:USTF0_20250530
["timestamp","ask_amount","ask_price","bid_price","bid_amount"]
[1748586939154,9.9,164.06,164.04,31.5]
[1748586940565,0.03934186,164.07,164.04,31.5]
[1748586941948,2.0545,164.11,164.06,6.69073612]
[1748586942763,6.092,164.1,164.06,6.69073612]
[1748586943055,6.13395552,164.1,164.06,6.73128923]
[1748586943462,6.0923,164.09,164.06,6.73128923]
[1748586943662,0.04195552,164.1,164.06,6.73128923]
[1748586944055,6.13405552,164.1,164.06,6.73128923]
[1748586944450,6.13405552,164.1,164.06,12.82468923]
[1748586944755,0.04195552,164.1,164.06,6.73128923]
[1748586944955,0.04195552,164.1,164.06,12.82458923]
[1748586945157,0.04195552,164.1,164.06,6.73128923]
[1748586945556,9.91,164.16,164.09,6.69073612]
[1748586945759,3.65370039,164.14,164.1,31.5]
[1748586945956,6.0907,164.14,164.1,31.5]
[1748586946158,3.6535888,164.13,164.1,31.5]
[1748586946361,6.0907,164.14,164.1,31.5]
[1748586946664,6.13036958,164.14,164.1,31.54498246]
[1748586949261,0.03966958,164.14,164.1,31.54498246]
[1748586950065,0.03966958,164.14,164.11,6.0915]
[1748586950857,0.03966958,164.14,164.12,12.78193612]
[1748586951060,10.81,164.15,164.12,6.69073612]
[1748586951269,10.81,164.15,164.13,6.0906]
[1748586951569,10.81,164.15,164.14,31.5]
[1748586954770,0.0420763,164.16,164.14,37.5905]
[1748586955170,6.0891,164.18,164.14,37.5905]
[1748586955564,6.0887,164.19,164.14,156.5905]
[1748586956167,0.04120555,164.18,164.14,156.5905]
[1748586956470,0.04120555,164.18,164.14,150.5]
[1748586956674,2.0436,164.22,164.16,6.69073612]
[1748586957566,6.0885,164.2,164.16,6.69073612]
[1748586957765,6.13521159,164.2,164.16,6.73480763]
[1748586957965,0.04671159,164.2,164.16,6.73480763]
[1748586958467,0.04671159,164.2,164.16,12.82450763]
[1748586958771,0.04671159,164.2,164.16,6.73480763]
[1748586958966,0.04671159,164.2,164.19,6.69073612]
[1748586959169,10.7,164.23,164.19,37.93073612]
[1748586959674,10.7,164.23,164.2,6.0882]
[1748586960070,10.7417494,164.23,164.2,0.03891173]
[1748586960469,10.7417494,164.23,164.22,6.69073612]
[1748586960669,6.1563,164.26,164.22,6.69073612]
[1748586960870,6.1563,164.26,164.23,31.24]
[1748586961171,6.156,164.26,164.23,31.24]
[1748586961373,0.07,164.26,164.23,31.24]
[1748586961775,0.11057174,164.26,164.23,31.24]
[1748586962479,6.19667174,164.26,164.23,31.24]
[1748586962774,0.11057174,164.26,164.23,31.24]
[1748586963171,0.11057174,164.26,164.2,0.03891173]
[1748586963366,3.6520421,164.25,164.2,0.03891173]
[1748586963572,0.11057174,164.26,164.2,0.03891173]
[1748586963764,6.0879,164.21,164.2,0.03891173]
[1748586964165,0.04405792,164.22,164.19,31.24]
[1748586964166,6.0883,164.2,164.19,31.24]
[1748586967881,2.119,164.21,164.18,0.04240859]
[1748586967882,6.0886,164.19,164.18,0.04240859]
[1748586968179,4.1661,164.21,164.16,31.24]
[1748586968381,4.1661,164.21,164.13,31.24]
[1748586969084,0.04575027,164.19,164.15,0.04185872]
[1748586969982,6.0897,164.16,164.15,0.04185872]
[1748586981289,0.04575027,164.19,164.15,6.73259484]
[1748586981892,6.13465027,164.19,164.15,12.82239484]
[1748586982194,0.04575027,164.19,164.15,12.82239484]
[1748586982395,0.04575027,164.19,164.15,0.04185872]
[1748586982598,6.0896,164.17,164.15,0.04185872]
[1748586982798,0.04575027,164.19,164.15,0.04185872]
[1748586983005,4.0755,164.18,164.15,0.04185872]
[1748586983188,6.0905,164.14,164.13,31.24]
[1748586984092,6.0905,164.14,164.09,6.0922]
[1748586984293,6.13067567,164.13,164.1,31.28358444]
[1748586984498,6.13067567,164.13,164.1,37.37548444]
[1748586984698,6.0913,164.12,164.1,31.28358444]
[1748586985095,0.03967567,164.13,164.1,31.28358444]
[1748586985400,6.0916,164.11,164.1,31.28358444]
[1748586986400,6.0913,164.12,164.1,31.28358444]
[1748586986599,0.03967567,164.13,164.1,31.28358444]
[1748586987495,0.03967567,164.13,164.11,6.0916]
[1748586987694,0.03967567,164.13,164.1,31.28358444]
[1748586989593,0.03967567,164.13,164.1,37.37538444]
[1748586992305,6.13057567,164.13,164.1,31.28358444]
[1748586992601,0.03967567,164.13,164.1,31.28358444]
[1748586993107,6.0915,164.12,164.1,31.28358444]
[1748586994103,6.13067567,164.13,164.1,31.28358444]
[1748586995511,0.03967567,164.13,164.1,31.28358444]
[1748586995814,0.03967567,164.13,164.1,0.04358444]
[1748586996005,3.6570765,164.12,164.07,31.12]
[1748586996203,4.0359,164.11,164.04,31.12]
[1748586996405,6.0924,164.09,164.05,6.0938]
[1748586997008,6.0927,164.08,164.05,0.04172764]
[1748586998604,6.0927,164.08,164.05,6.13532764]
[1748587000106,6.13765594,164.09,164.05,6.13532764]
[1748587000804,6.13765594,164.09,164.06,6.0934]
[1748587001000,0.04515594,164.09,164.07,6.69073612]
[1748587003905,0.04515594,164.09,164.05,0.04172764]
[1748587004312,0.04515594,164.09,164.01,31.12]
[1748587004502,6.0948,164.03,164.01,31.12]
[1748587004700,2.0581,164.08,164.01,31.12]
[1748587004899,3.63940523,164.07,164.01,31.12]
[1748587005109,2.0581,164.08,163.98,31.12]
[1748587005110,33.1781,164.08,163.98,31.12]
[1748587005411,0.0399477,164.05,164.01,0.0424937]
[1748587006211,6.0949,164.02,164.01,0.0424937]
[1748587011808,0.1699477,164.05,164.01,0.0424937]
[1748587012117,0.1699477,164.05,164.02,6.69073612]
[1748587012415,0.1699477,164.05,164.02,37.83073612]
[1748587012615,12.91,164.07,164.03,6.0946]
[1748587012816,12.91,164.07,164.05,6.69073612]
[1748587013320,19.0033,164.07,164.05,6.69073612]
[1748587016017,12.91,164.07,164.05,6.69073612]
[1748587016215,4.1739,164.13,164.05,6.69073612]
[1748587016413,6.2452,164.13,164.08,6.69073612]
[1748587016916,6.0923,164.09,164.08,6.69073612]
[1748587017117,6.2452,164.13,164.08,6.69073612]
[1748587017318,0.04108793,164.12,164.09,0.03892805]
[1748587017814,6.0922,164.1,164.09,0.03892805]
[1748587021714,0.04108793,164.12,164.09,0.03892805]
[1748587022114,6.0915,164.12,164.1,6.69073612]
[1748587022318,2.0713,164.13,164.1,6.69073612]
[1748587023126,2.11096774,164.13,164.1,6.69073612]
[1748587024833,3.9743,164.18,164.1,37.81073612]
[1748587025036,6.1084,164.18,164.13,6.69073612]
[1748587025528,6.0903,164.15,164.13,6.69073612]
[1748587025827,0.04650645,164.16,164.12,0.03860535]
[1748587026226,6.0904,164.15,164.12,0.03860535]
[1748587026531,6.0904,164.15,164.12,6.72934147]
[1748587027036,6.0905,164.14,164.12,6.72934147]
[1748587027224,6.0905,164.14,164.12,0.03860535]
[1748587028629,6.0908,164.13,164.12,0.03860535]
[1748587033135,0.04650645,164.16,164.07,31.12]
[1748587033336,3.63552165,164.15,164.07,31.12]
[1748587033628,6.0911,164.13,164.09,12.78283612]
[1748587033834,31.12,164.17,164.09,6.69073612]
[1748587034029,0.04130273,164.15,164.11,0.04374821]
[1748587034837,6.0912,164.12,164.11,0.04374821]
[1748587035233,0.04130273,164.15,164.07,37.81073612]
[1748587035431,6.0926,164.09,164.07,37.81073612]
[1748587035628,31.12,164.17,164.07,37.81073612]
[1748587035831,31.12,164.17,164.07,43.90373612]
[1748587035832,3.6349665,164.16,164.07,43.90373612]
[1748587036034,31.12,164.17,164.07,43.90373612]
[1748587036231,0.03858037,164.14,164.1,0.03909609]
[1748587036431,0.03858037,164.14,163.95,3.57712432]
[1748587036432,37.36158496,164.13,163.99,31.12]
[1748587036636,6.24158496,164.12,163.99,31.12]
[1748587036939,6.24184131,164.11,163.99,31.12]
[1748587037133,3.63535415,164.1,163.99,31.12]
[1748587037337,3.63535415,164.1,164.03,0.04045801]
[1748587037338,0.04173836,164.06,164.03,0.04045801]
[1748587037538,6.0942,164.04,164.03,0.04045801]
[1748587038038,0.04173836,164.06,163.96,31.12]
[1748587038338,6.0966,163.98,163.96,31.12]
[1748587038542,2.1447,164.03,163.96,31.12]
[1748587038836,6.0963,163.99,163.96,31.12]
[1748587039038,6.1409951,163.99,163.96,31.16653424]
[1748587039539,6.0966,163.98,163.96,31.16653424]
[1748587040437,6.0968,163.97,163.96,31.16653424]
[1748587040739,0.0446951,163.99,163.96,31.16653424]
[1748587041128,6.0968,163.97,163.96,31.16653424]
[1748587041931,6.0964,163.98,163.96,31.16653424]
[1748587045337,6.1407951,163.99,163.96,31.16653424]
[1748587045543,0.0446951,163.99,163.96,31.16653424]
[1748587045743,6.0967,163.98,163.96,31.16653424]
[1748587048947,6.0968,163.97,163.96,0.04653424]
[1748587054146,6.0979,163.94,163.93,31.12]
[1748587054345,37.81073612,164.01,163.9,31.12]
[1748587054940,6.0988,163.92,163.9,31.12]
[1748587055343,0.04016987,163.93,163.9,31.12]
[1748587056047,0.04016987,163.93,163.91,6.0989]
[1748587056239,0.04016987,163.93,163.9,31.12]
[1748587056439,0.04016987,163.93,163.9,37.2191]
[1748587056636,0.04016987,163.93,163.9,31.12]
[1748587058234,0.04016987,163.93,163.91,6.099]
[1748587058637,0.04016987,163.93,163.9,37.2193]
[1748587058836,0.04016987,163.93,163.9,31.12]
[1748587059950,0.04016987,163.93,163.89,0.03897533]
[1748587060941,31.16016987,163.93,163.89,0.03897533]
[1748587061149,6.1001,163.89,163.85,6.1011]
[1748587061348,31.12,163.93,163.85,6.1011]
[1748587061543,31.12,163.93,163.84,31.12]
[1748587061850,6.1009,163.86,163.84,31.12]
[1748587062045,31.12,163.93,163.84,31.12]
[1748587062349,0.04607946,163.9,163.87,0.04247669]
[1748587062552,6.1004,163.88,163.87,0.04247669]
[1748587064253,6.1004,163.88,163.79,119.0]
[1748587064254,33.0799,163.89,163.79,31.12]
[1748587064447,1.9863,163.87,163.79,31.12]
[1748587065150,0.04079278,163.85,163.81,0.04144607]
[1748587065746,0.04079278,163.85,163.81,6.14414607]
[1748587066052,0.04079278,163.85,163.81,0.04144607]
[1748587066859,6.14219278,163.85,163.81,0.04144607]
[1748587067157,0.04079278,163.85,163.81,0.04144607]
[1748587067658,6.1019,163.84,163.81,0.04144607]
[1748587069556,6.1021,163.83,163.81,0.04144607]
[1748587070658,6.1017,163.84,163.81,0.04144607]
[1748587071252,0.04079278,163.85,163.81,0.04144607]
[1748587071847,6.14229278,163.85,163.81,6.14384607]
[1748587072052,6.14229278,163.85,163.81,0.04144607]
[1748587072963,6.1018,163.84,163.81,0.04144607]
[1748587074562,6.102,163.83,163.81,0.04144607]
[1748587075165,0.04079278,163.85,163.81,0.04144607]
[1748587075166,6.1024,163.82,163.81,0.04144607]
[1748587075364,0.04079278,163.85,163.81,0.04144607]
[1748587075765,6.14239278,163.85,163.81,6.14414607]
[1748587075960,0.04079278,163.85,163.81,0.04144607]
[1748587077163,6.1019,163.84,163.81,0.04144607]
[1748587077953,6.1017,163.84,163.81,0.04144607]
[1748587078357,0.04079278,163.85,163.81,0.04144607]
[1748587079168,6.102,163.84,163.81,0.04144607]
[1748587079357,0.04079278,163.85,163.81,0.04144607]
[1748587079757,6.102,163.84,163.81,0.04144607]
[1748587080767,0.04079278,163.85,163.81,0.04144607]
[1748587081168,0.04079278,163.85,163.83,6.69073612]
[1748587081361,0.04079278,163.85,163.84,6.1016]
[1748587086270,0.04079278,163.85,163.83,37.2419]
[1748587086574,0.04079278,163.85,163.83,31.14]
[1748587087472,0.04079278,163.85,163.83,37.2419]
[1748587088065,6.14219278,163.85,163.83,31.14]
[1748587088274,0.04079278,163.85,163.83,31.14]
[1748587088469,0.04079278,163.85,163.81,0.04144607]
[1748587088771,6.1017,163.84,163.81,0.04144607]
[1748587090066,0.04079278,163.85,163.81,0.04144607]
[1748587090667,0.04079278,163.85,163.83,6.1019]
[1748587090868,0.04079278,163.85,163.81,6.73218219]
[1748587091074,0.04079278,163.85,163.84,37.2416]
[1748587092773,35.4269,163.92,163.84,37.83073612]
[1748587092774,6.0988,163.92,163.84,37.83073612]
[1748587093069,33.2459,163.95,163.84,37.83073612]
[1748587093373,6.0987,163.92,163.87,6.1003]
[1748587093571,2.1059,163.95,163.88,31.14]
[1748587093770,0.04185449,163.93,163.9,0.04687763]
[1748587094377,6.099,163.91,163.9,0.04687763]
[1748587098672,6.099,163.91,163.9,7.763e-05]
[1748587098971,6.1009,163.86,163.85,31.12]
[1748587099171,6.1009,163.86,163.82,31.12]
[1748587099678,6.1006,163.87,163.82,31.12]
[1748587099977,0.04267944,163.86,163.83,0.04474222]
[1748587100275,0.04267944,163.86,163.84,6.1016]
[1748587100776,0.04267944,163.86,163.83,6.14664222]
[1748587102475,0.04267944,163.86,163.83,0.04474222]
[1748587102773,6.14357944,163.86,163.83,0.04474222]
[1748587103277,0.04267944,163.86,163.83,0.04474222]
[1748587103872,0.04267944,163.86,163.84,6.1014]
[1748587105274,0.04267944,163.86,163.83,6.14664222]
[1748587105977,0.04267944,163.86,163.84,6.1016]
[1748587106179,0.04267944,163.86,163.83,0.04474222]
[1748587107077,0.04267944,163.86,163.85,6.1013]
[1748587107579,8.79663612,163.95,163.84,6.69073612]
[1748587107580,6.099,163.92,163.84,6.69073612]
[1748587107778,6.099,163.92,163.87,6.69073612]
[1748587108075,6.0983,163.94,163.88,31.12]
[1748587108283,2.1059,163.95,163.88,31.12]
[1748587108477,3.6166427,163.94,163.88,31.12]
[1748587108678,6.14237286,163.93,163.9,0.04076504]
[1748587111373,6.0987,163.92,163.9,0.04076504]
[1748587111578,0.04377286,163.93,163.9,0.04076504]
[1748587112784,6.099,163.91,163.9,0.04076504]
[1748587115482,6.0987,163.92,163.9,0.04076504]
[1748587116186,6.14217286,163.93,163.9,0.04076504]
[1748587118792,6.0987,163.92,163.9,0.04076504]
[1748587119083,0.04377286,163.93,163.9,0.04076504]
[1748587120289,6.0989,163.92,163.9,0.04076504]
[1748587121190,6.099,163.91,163.9,0.04076504]
[1748587121389,0.04377286,163.93,163.9,0.04076504]
[1748587122090,3.60970604,163.92,163.88,31.12]
[1748587122292,6.1004,163.88,163.85,31.1]
[1748587122589,33.2059,163.95,163.84,31.1]
[1748587122786,10.30112075,163.94,163.84,31.1]
[1748587122987,6.21642615,163.93,163.84,31.1]
[1748587123192,0.04228285,163.91,163.87,0.03918904]
[1748587123391,6.1013,163.85,163.84,31.1]
[1748587125689,0.041588,163.86,163.84,31.1]
[1748587126390,0.041588,163.86,163.85,6.1013]
[1748587126592,0.041588,163.86,163.84,31.1]
[1748587126984,6.1013,163.85,163.84,31.1]
[1748587129993,0.041588,163.86,163.84,31.1]
[1748587130802,6.142788,163.86,163.84,31.1]
[1748587131800,0.041588,163.86,163.84,31.1]
[1748587132300,6.142688,163.86,163.84,31.1]
[1748587132896,0.041588,163.86,163.84,31.1]
[1748587134100,0.041588,163.86,163.83,0.04286239]
[1748587134498,6.1025,163.82,163.78,31.1]
[1748587134898,2.0455,163.89,163.78,31.1]
[1748587135099,6.1019,163.84,163.79,6.1031]
[1748587135294,2.60394505,163.87,163.79,6.1031]
[1748587135502,0.04320717,163.85,163.79,6.1031]
[1748587136002,3.60696683,163.84,163.8,6.1031]
[1748587136203,0.04320717,163.85,163.78,31.1]
[1748587136392,6.102,163.84,163.8,6.1029]
[1748587136593,0.04320717,163.85,163.78,31.1]
[1748587136795,0.04320717,163.85,163.8,6.69073612]
[1748587137007,0.04320717,163.85,163.84,6.1016]
[1748587139216,0.04320717,163.85,163.83,37.2219]
[1748587139409,0.04320717,163.85,163.83,31.12]
[1748587139912,0.04320717,163.85,163.84,6.1016]
[1748587140311,0.04320717,163.85,163.83,31.12]
[1748587141309,0.04320717,163.85,163.83,37.2219]
[1748587142715,0.04320717,163.85,163.84,6.1016]
[1748587145018,0.00034478,163.85,163.84,6.1016]
[1748587146714,0.00034478,163.85,163.83,31.16027892]
[1748587148017,6.10174478,163.85,163.83,31.16027892]
[1748587148324,0.00034478,163.85,163.83,31.16027892]
[1748587148523,6.10184478,163.85,163.83,31.16027892]
[1748587149325,6.1016,163.84,163.83,31.16027892]
[1748587149518,6.1016,163.84,163.83,0.04027892]
[1748587152621,0.00034478,163.85,163.83,0.04027892]
[1748587154125,6.10174478,163.85,163.83,0.04027892]
[1748587154323,0.00034478,163.85,163.83,0.04027892]
[1748587154525,6.1016,163.84,163.83,0.04027892]
[1748587154726,0.00034478,163.85,163.77,558.08]
[1748587154930,3.60929868,163.84,163.77,558.08]
[1748587155130,0.00034478,163.85,163.77,558.08]
[1748587155328,3.60851191,163.84,163.77,558.08]
[1748587155529,0.00034478,163.85,163.77,558.08]
[1748587155827,6.1022,163.83,163.79,6.1032]
[1748587156027,6.1022,163.83,163.77,558.08]
[1748587156028,0.00034478,163.85,163.77,564.77073612]
[1748587156229,0.04558831,163.83,163.77,564.77073612]
[1748587157229,0.04558831,163.83,163.82,6.1024]
[1748587157522,0.04558831,163.83,163.82,37.2024]
[1748587160427,0.04558831,163.83,163.82,31.1]
[1748587162633,0.04558831,163.83,163.79,31.1]
[1748587163137,0.04558831,163.83,163.82,6.1024]
[1748587163933,0.04558831,163.83,163.81,6.1026]
[1748587164330,0.04558831,163.83,163.79,31.1]
[1748587164639,0.04558831,163.83,163.8,6.1029]
[1748587166639,0.04558831,163.83,163.81,6.1027]
[1748587167038,0.04558831,163.83,163.8,6.103]
[1748587167739,0.04558831,163.83,163.79,31.1]
[1748587168239,6.1029,163.81,163.79,31.1]
[1748587168642,0.04558831,163.83,163.79,31.1]
[1748587168841,3.61071914,163.82,163.79,31.1]
[1748587169141,6.103,163.81,163.79,31.1]
[1748587169435,0.04558831,163.83,163.79,31.1]
[1748587169643,3.60972059,163.82,163.79,31.1]
[1748587169941,3.60928716,163.81,163.73,31.1]
[1748587170147,0.04007782,163.79,163.73,31.1]
[1748587170339,6.1042,163.78,163.74,6.1052]
[1748587170651,0.04007782,163.79,163.73,31.1]
[1748587172544,6.1039,163.78,163.73,37.2055]
[1748587173242,31.30007782,163.79,163.69,116.14531757]
[1748587173444,0.04083892,163.76,163.69,116.14531757]
[1748587173744,0.04083892,163.76,163.72,6.1058]
[1748587173943,0.04083892,163.76,163.69,122.83605369]
[1748587174347,31.26,163.86,163.72,6.69073612]
[1748587174642,6.1021,163.83,163.73,33.3949]
[1748587174846,3.60098245,163.82,163.78,6.1036]
[1748587175047,2.0112,163.85,163.78,37.3636]
[1748587175250,7.82033206,163.84,163.78,37.3636]
[1748587175445,3.6465861,163.83,163.79,0.04084886]
[1748587175642,0.04555404,163.83,163.79,0.04084886]
[1748587176447,6.1027,163.82,163.79,0.04084886]
[1748587178749,6.1028,163.81,163.79,0.04084886]
[1748587179446,6.1031,163.8,163.79,0.04084886]
[1748587180745,6.1036,163.79,163.75,37.3649]
[1748587181542,6.1039,163.78,163.75,31.26]
[1748587181744,0.04632018,163.79,163.75,31.26]
[1748587181949,6.105,163.75,163.72,31.26]
[1748587182155,0.04560204,163.75,163.72,31.26]
[1748587182654,0.04560204,163.75,163.72,37.3657]
[1748587182846,0.04560204,163.75,163.72,31.26]
[1748587183956,0.04560204,163.75,163.72,37.3658]
[1748587184151,0.04560204,163.75,163.72,31.26]
[1748587184954,0.04560204,163.75,163.73,6.1057]
[1748587185254,0.04560204,163.75,163.72,31.26]
[1748587185556,0.04560204,163.75,163.74,6.1053]
[1748587188855,0.04560204,163.75,163.73,6.1056]
[1748587189053,0.04560204,163.75,163.72,31.26]
[1748587189351,0.04560204,163.75,163.74,6.1053]
[1748587190854,0.04560204,163.75,163.73,6.1056]
[1748587191153,0.04560204,163.75,163.72,31.26]
[1748587192761,0.04560204,163.75,163.72,37.3659]
[1748587193657,0.04560204,163.75,163.72,31.26]
[1748587195558,0.04560204,163.75,163.74,6.1053]
[1748587195753,6.071,163.83,163.73,6.69073612]
[1748587195960,6.1027,163.81,163.76,6.1046]
[1748587196172,6.071,163.83,163.77,31.26]
[1748587196755,6.071,163.83,163.78,0.04293854]
[1748587196964,0.04131777,163.82,163.78,0.04293854]
[1748587198267,6.1034,163.8,163.78,0.04293854]
[1748587200364,6.1035,163.79,163.78,0.04293854]
[1748587200867,0.04131777,163.82,163.78,0.04293854]
[1748587201071,0.04131777,163.82,163.78,6.14663854]
[1748587201268,0.04131777,163.82,163.78,0.04293854]
[1748587201473,0.04131777,163.82,163.78,6.14653854]
[1748587202070,6.14371777,163.82,163.78,6.14653854]
[1748587202964,6.14371777,163.82,163.78,0.04293854]
[1748587203872,6.1028,163.81,163.78,0.04293854]
[1748587204263,0.04131777,163.82,163.78,0.04293854]
[1748587204467,3.5988526,163.81,163.78,0.04293854]
[1748587204676,0.04131777,163.82,163.78,0.04293854]
[1748587205473,6.1035,163.79,163.78,0.04293854]
[1748587207873,6.1032,163.8,163.78,0.04293854]
[1748587208072,0.04131777,163.82,163.78,0.04293854]
[1748587208568,0.04131777,163.82,163.78,6.14643854]
[1748587208772,0.04131777,163.82,163.78,37.50643854]
[1748587210977,6.14371777,163.82,163.78,37.50643854]
[1748587211373,6.14371777,163.82,163.78,31.40293854]
[1748587211771,6.1028,163.81,163.78,31.40293854]
[1748587217484,6.14381777,163.82,163.78,31.40293854]
[1748587219476,6.14381777,163.82,163.78,37.50673854]
[1748587220776,0.04131777,163.82,163.78,37.50673854]
[1748587221181,0.04131777,163.82,163.78,31.40293854]
[1748587221382,6.14391777,163.82,163.78,31.40293854]
[1748587221783,0.04131777,163.82,163.78,37.50673854]
[1748587222989,6.14371777,163.82,163.78,37.50673854]
[1748587226790,0.04131777,163.82,163.78,37.50673854]
[1748587227490,6.14371777,163.82,163.78,37.50673854]
[1748587227894,0.04131777,163.82,163.78,37.50673854]
[1748587228096,0.04131777,163.82,163.78,31.40293854]
[1748587228483,0.04131777,163.82,163.81,6.1027]
[1748587229487,0.04131777,163.82,163.8,119.52]
[1748587230798,6.14381777,163.82,163.78,31.40293854]
[1748587231595,0.04131777,163.82,163.78,31.40293854]
[1748587233195,6.103,163.81,163.78,31.40293854]
[1748587233497,0.04131777,163.82,163.78,31.40293854]
[1748587233798,6.1035,163.79,163.78,0.04293854]
[1748587234199,6.1046,163.76,163.75,31.46]
[1748587234397,6.1046,163.76,163.72,558.62]
[1748587235202,6.15090143,163.76,163.72,558.62]
[1748587237103,0.04630143,163.76,163.72,564.7261]
[1748587238795,6.15090143,163.76,163.72,564.7261]
[1748587239898,0.04630143,163.76,163.72,564.7261]
[1748587240202,0.04630143,163.76,163.72,558.62]
[1748587243807,0.04630143,163.76,163.73,6.1057]
[1748587244307,0.04630143,163.76,163.75,6.105]
[1748587244507,38.15073612,163.86,163.72,31.46]
[1748587244699,2.58668386,163.85,163.74,6.69073612]
[1748587244896,31.46,163.86,163.78,6.1036]
[1748587245208,2.58681904,163.85,163.78,31.46]
[1748587245507,0.04356743,163.83,163.8,0.03969579]
[1748587245895,6.1027,163.81,163.8,0.03969579]
[1748587246904,6.104,163.78,163.75,31.46]
[1748587248009,6.15073933,163.78,163.75,31.46]
[1748587248208,0.04673933,163.78,163.75,31.46]
[1748587248804,0.04673933,163.78,163.75,37.565]
[1748587249510,0.04673933,163.78,163.76,6.1045]
[1748587249708,0.04673933,163.78,163.75,31.46]
[1748587250808,0.04673933,163.78,163.77,6.1042]
[1748587251514,0.04673933,163.78,163.75,31.46]
[1748587251908,0.04673933,163.78,163.68,31.46]
[1748587252112,0.03882324,163.75,163.68,37.5673]
[1748587252410,0.03882324,163.75,163.68,31.46]
[1748587253105,0.03882324,163.75,163.69,6.1069]
[1748587253408,0.03882324,163.75,163.68,31.46]
[1748587253614,0.03882324,163.75,163.7,6.1068]
[1748587254509,0.03882324,163.75,163.71,6.1064]
[1748587254706,0.03882324,163.75,163.72,32.84]
[1748587255120,2.1173,163.8,163.72,32.84]
[1748587255412,32.84,163.84,163.74,6.69073612]
[1748587255812,6.1027,163.82,163.75,6.1047]
[1748587256014,6.1027,163.82,163.76,32.84]
[1748587256207,0.03853464,163.81,163.77,0.04141415]
[1748587258411,6.1032,163.8,163.77,0.04141415]
[1748587258810,6.1036,163.79,163.77,0.04141415]
[1748587260010,6.1032,163.8,163.77,0.04141415]
[1748587260918,6.1036,163.79,163.77,0.04141415]
[1748587261418,6.1039,163.78,163.77,0.04141415]
[1748587262518,6.105,163.75,163.7,32.82]
[1748587262818,2.59881157,163.8,163.7,32.82]
[1748587263121,3.9942,163.81,163.7,32.82]
[1748587263511,0.04539041,163.77,163.7,32.82]
[1748587263822,0.04539041,163.77,163.72,6.1058]
[1748587264212,6.14969041,163.77,163.72,6.1058]
[1748587264415,0.04539041,163.77,163.72,6.1058]
[1748587265513,0.04539041,163.77,163.71,6.1064]
[1748587265819,6.14969041,163.77,163.71,6.1064]
[1748587266011,0.04539041,163.77,163.7,32.82]
[1748587266717,6.14969041,163.77,163.7,38.9268]
[1748587268121,6.14969041,163.77,163.7,45.61753612]
[1748587268323,6.14969041,163.77,163.7,32.82]
[1748587268324,6.1046,163.76,163.7,32.82]
[1748587268914,6.105,163.75,163.7,32.82]
[1748587269618,6.1047,163.76,163.7,32.82]
[1748587269928,0.04539041,163.77,163.7,32.82]
[1748587270525,6.1049,163.76,163.7,32.82]
[1748587270917,6.1049,163.76,163.7,38.9267]
[1748587271117,6.1051,163.75,163.7,32.82]
[1748587271317,0.04539041,163.77,163.7,32.82]
[1748587271717,6.1054,163.74,163.7,32.82]
[1748587271918,6.14488237,163.74,163.7,32.82]
[1748587272415,0.03948237,163.74,163.7,32.82]
[1748587276727,6.14478237,163.74,163.7,32.82]
[1748587278120,6.1058,163.73,163.7,32.82]
[1748587278318,0.03948237,163.74,163.7,32.82]
[1748587279129,0.03948237,163.74,163.67,527.24]
[1748587279130,6.1068,163.7,163.67,561.58]
[1748587279323,6.14823289,163.7,163.67,561.58]
[1748587280228,0.04143289,163.7,163.67,34.34]
[1748587281230,0.04143289,163.7,163.67,41.03073612]
[1748587281427,6.1056,163.74,163.68,6.69073612]
[1748587282126,6.1058,163.73,163.68,6.69073612]
[1748587282529,0.04396642,163.72,163.69,0.04590942]
[1748587282931,6.15016642,163.72,163.69,0.04590942]
[1748587283134,0.04396642,163.72,163.69,0.04590942]
[1748587284335,6.1068,163.7,163.69,0.04590942]
[1748587286541,6.1066,163.71,163.69,0.04590942]
[1748587286840,0.04396642,163.72,163.69,0.04590942]
[1748587288734,6.1068,163.7,163.69,0.04590942]
[1748587290433,6.1077,163.68,163.64,34.36]
[1748587290837,2.1355,163.73,163.64,34.36]
[1748587291036,6.107,163.7,163.65,6.1084]